Cogmind - Beta 13 @@@ ROGUE MODE // 2024.04.06 @ 14:17:28 Player: Oldman Pu Result: Destroyed by P-80 Master with Gamma Rifle Performance ------------- Evolutions (7) 3500 Regions Visited (11) 2200 Robots Destroyed (292) 1460 Value Destroyed (11365) 11365 Prototype IDs (8) 160 Alien Tech Used (0) 0 Bonus (1019) 1019 TOTAL SCORE: 19704 Bonus ------- High Alert Combat Kills 1001 Follower Combat Kills 74 Friendly Fire -56 Cogmind --------- Core Integrity 0/1300 Matter 230/300 Energy 29/100 System Corruption 18% Temperature Cool (17) Movement Core (1550) Ox30 Location -3/Research Parts ------- > --- POWER (3) -------- (None) > --- PROPULSION (5) --- (None) > --- UTILITY (9) ------ Huge Storage Unit Advanced Targeting Computer > --- WEAPON (4) ------- Linear Accelerator > --- INVENTORY (25) --- Light Angular Momentum Engine Light Antimatter Reactor Biometal Medium Treads Gyrokinetic Inverter Advanced Heat Sink Advanced Heat Sink Advanced Heat Sink Advanced Heat Sink Improved Coolant Injector Huge Storage Unit Improved Field Recycling Unit (0) Drone Bay (2/2) Compact HERF Cannon Compact HERF Cannon Peak State ------------ > --- POWER ------------ Antimatter Reactor Light Antimatter Reactor Compact Particle Reactor > --- PROPULSION ------- Armored Medium Treads Advanced Medium Treads Biometal Medium Treads Wheel Compact Wheel > --- UTILITY ---------- Advanced Heat Sink Advanced Heat Sink Advanced Coolant Injector Huge Storage Unit Advanced Sensor Array Advanced Targeting Computer Makeshift Transmission Jammer Layered Heavy Armor Plating > --- WEAPON ----------- Field Laser Compact HERF Cannon Compact HERF Cannon Heavy Plasma Cannon > --- INVENTORY -------- Light Nuclear Core Light Angular Momentum Engine Fusion Compressor Neutrino Core Antimatter Reactor Light Antimatter Reactor Flexi-carbon Leg Flexi-carbon Leg Wheel Gyrokinetic Inverter Advanced Heat Sink Advanced Heat Sink Advanced Heat Sink Advanced Heat Sink Improved Coolant Injector Huge Storage Unit Advanced Melee Analysis Suite Improved Thermal Shield High-powered Tractor Beam Improved Field Recycling Unit Drone Bay Plasma Rifle Advanced Remote Datajack Chainsword Chainsword [Rating: 125] Favorites ----------- Power Angular Momentum Engine Engine Angular Momentum Engine Power Core Neutrino Core Reactor Antimatter Reactor Propulsion Wheel Treads Armored Medium Treads Leg Flexi-carbon Leg Wheel Wheel Hover Unit Gyrokinetic Inverter Utility Huge Storage Unit Device Advanced Heat Sink Storage Huge Storage Unit Processor Targeting Computer Protection Hardened Medium Armor Plating Weapon Cooled Pulse Rifle Energy Gun Cooled Pulse Rifle Energy Cannon Phase Cannon Ballistic Gun Enhanced Autogun Ballistic Cannon Advanced Assault Cannon Slashing Weapon Chainsword Build | -11 -10 -10 -8 -7 -6 -5 -5 -4 -4 -4 -3 ------- Run | Yrd Mat Sub Mat Fac Fac Fac Ext Fac Upp Upp Res Slots Evolved 14 | . . . 4 2 2 2 . 2 . . 2 Power 2 | . . . 1 . . . . 1 . . . Propulsion 3 | . . . 1 . 1 . . . . . 1 Utility 7 | . . . 2 1 1 1 . 1 . . 1 Weapon 2 | . . . . 1 . 1 . . . . . Parts Attached 324 | 6 12 8 38 45 34 16 87 3 17 3 55 Power 43 | 1 1 2 7 5 5 . 9 1 2 . 10 Engine 25 | 1 1 2 7 4 3 . 6 . . . 1 Core 9 | . . . . 1 2 . 2 1 1 . 2 Reactor 9 | . . . . . . . 1 . 1 . 7 Propulsion 98 | 2 1 1 13 7 10 8 38 1 2 2 13 Treads 8 | . . . 2 . . . 2 . . . 4 Leg 26 | . . . . . . . 21 . . . 5 Wheel 62 | 2 1 1 11 7 9 8 15 1 2 2 3 Hover 2 | . . . . . 1 . . . . . 1 Flight . | . . . . . . . . . . . . Utility 91 | 1 5 2 11 20 9 3 19 1 7 . 13 Device 46 | . 3 2 4 8 3 1 7 . 6 . 12 Storage 12 | 1 2 . 2 4 . 2 1 . . . . Processor 2 | . . . 1 . . . 1 . . . . Hackware . | . . . . . . . . . . . . Protection 31 | . . . 4 8 6 . 10 1 1 . 1 Artifact . | . . . . . . . . . . . . Weapon 92 | 2 5 3 7 13 10 5 21 . 6 1 19 Energy Gun 53 | 2 1 1 3 6 8 1 13 . 4 . 14 Energy Cannon 12 | . 3 1 . 1 . 1 1 . 1 1 3 Ballistic Gun 21 | . 1 1 4 2 2 3 7 . 1 . . Ballistic Cannon 5 | . . . . 4 . . . . . . 1 Launcher . | . . . . . . . . . . . . Special Weapon . | . . . . . . . . . . . . Impact Weapon . | . . . . . . . . . . . . Slashing Weapon 1 | . . . . . . . . . . . 1 Piercing Weapon . | . . . . . . . . . . . . Special Melee Weapon . | . . . . . . . . . . . . Unidentified Prototypes 8 | . . . 1 3 1 1 . . . . 2 Parts Lost 133 | . 1 6 14 8 9 3 27 1 13 8 43 Power 19 | . . 2 2 1 . . 3 . 1 . 10 Propulsion 40 | . 1 2 4 3 2 1 10 . 2 3 12 Utility 34 | . . 2 3 2 2 1 8 1 4 3 8 Weapon 40 | . . . 5 2 5 1 6 . 6 2 13 Highest Loss Streak 22 | . 1 5 8 5 5 3 9 1 12 8 22 To Critical Strikes 1 | . . . . . 1 . . . . . . Average Slot Usage (%) 93 | . 96 84 95 95 92 96 96 89 87 82 88 Engine 8 | . 14 12 17 9 8 11 4 10 10 10 1 Core 2 | . . . . 4 4 . 4 5 . 5 . Reactor 1 | . . . . . . . 1 . 4 . 10 Treads 1 | . . . 1 . . . . . . . 9 Leg 2 | . . . . . . . 8 . . . . Wheel 17 | . 26 15 23 19 24 20 13 15 14 11 9 Device 12 | . 12 13 8 9 6 6 13 15 15 23 25 Storage 9 | . 14 14 11 11 13 15 5 5 5 5 4 Processor 5 | . . . 8 7 6 5 5 5 5 5 4 Protection 7 | . . . 5 6 7 11 11 10 9 2 1 Energy Gun 12 | . 15 . 4 15 18 9 13 5 1 8 10 Energy Cannon 2 | . 7 21 1 . . 1 1 . . 7 6 Ballistic Gun 6 | . 4 6 12 2 . 11 6 15 19 3 . Naked Turns . | . . . . . . . . . . . . Heaviest Build 181 | 12 52 54 131 143 140 147 164 166 167 158 181 Greatest Support 105 | 20 20 20 40 44 46 52 75 52 48 48 105 Greatest Overweight (x) 16 | . 5 16 6 11 6 3 14 3 4 5 11 Average Overweight (x) 2 | . 1 3 2 3 2 2 2 3 3 3 4 Largest Inventory Capacity 25 | 8 20 20 25 25 25 25 25 25 25 25 25 Average Capacity 24 | 6 17 20 21 25 25 25 25 25 25 25 25 Most Carried 25 | . 11 14 25 25 25 25 25 25 25 16 25 Average Carried 21 | . 5 11 18 24 24 24 24 22 23 14 20 Final Capacity 25 | 8 20 20 25 25 25 25 25 25 25 25 25 Final Carried 25 | . 11 14 23 25 25 25 24 22 13 13 14 Class Distribution -------------------- 43% | Scavenger-Tank 35% | Scavenger-Gunner 10% | Mutant 8% | Scavenger-Mutant Dominant Class ---------------- Mutant | -10/Materials Mutant | -10/Subcaves Scavenger-Mutant | -8/Materials Scavenger-Gunner | -7/Factory Scavenger-Gunner | -6/Factory Scavenger-Tank | -5/Factory Scavenger-Tank | -5/Extension Scavenger-Tank | -4/Factory Scavenger-Tank | -4/Upper Caves Scavenger-Gunner | -4/Upper Caves Scavenger-Gunner | -3/Research Resources | -11 -10 -10 -8 -7 -6 -5 -5 -4 -4 -4 -3 ----------- Run | Yrd Mat Sub Mat Fac Fac Fac Ext Fac Upp Upp Res Matter Collected 6238 | 66 381 91 680 1054 550 329 1986 100 532 75 394 Remotely 30 | . . . . . . . . . . . 30 Salvage Created 16424 | . 725 202 1139 1717 1896 645 6116 128 890 132 2834 Parts 641 | . 30 10 94 86 48 29 211 10 30 . 93 Haulers Intercepted 23 | . 1 . 3 2 3 1 12 . . . 1 Recyclers Shooed 7 | . 1 . 1 . 2 2 1 . . . . Parts Field Recycled . | . . . . . . . . . . . . Retrieved Matter . | . . . . . . . . . . . . Parts Self-Destructed 26 | . . 3 . . . . . . 23 . . Prevented . | . . . . . . . . . . . . Kills | -11 -10 -10 -8 -7 -6 -5 -5 -4 -4 -4 -3 ------- Run | Yrd Mat Sub Mat Fac Fac Fac Ext Fac Upp Upp Res Combat Hostiles Destroyed 207 | . 11 4 19 27 23 4 66 5 13 2 33 Melee 1 | . . . . . . . . . . . 1 Guns 153 | . 8 1 19 20 21 4 51 5 11 . 13 Cannons 31 | . 3 3 . 5 . . 10 . . . 10 Classes Destroyed 20 | . 5 1 7 2 2 . 3 . . . . Worker 22 | . 2 . 3 6 3 3 4 . . . 1 Builder 7 | . . . 1 1 . . 5 . . . . Tunneler 4 | . . . . 1 . 2 1 . . . . Hauler 23 | . 1 . 3 2 3 1 12 . . . 1 Recycler 16 | . 1 . . 2 1 2 9 . . . 1 Operator 2 | . . . 1 1 . . . . . . . Watcher 18 | . 2 . 2 6 3 1 3 . . . 1 Swarmer 30 | . . . 4 . 4 . 15 5 2 . . Saboteur 1 | . . . . . . . 1 . . . . Grunt 98 | . 11 . 5 14 9 . 27 . 8 . 24 Brawler 3 | . . . . . 2 . 1 . . . . Duelist 7 | . . . . . 2 . 3 . 1 . 1 Protector 1 | . . . . . . . 1 . . . . Sentry 22 | . . . 4 4 3 1 6 . 2 . 2 Specialist 4 | . . . 4 . . . . . . . . Hunter 10 | . . . 1 2 . 3 1 . . 2 1 Programmer 16 | . . . . 6 3 . 2 . . . 5 Heavy 2 | . . . 1 1 . . . . . . . Behemoth 2 | . . . . . . . 2 . . . . Subdweller 4 | . . 4 . . . . . . . . . Thug 5 | . . . . . . . 5 . . . . Butcher 2 | . . . . . . . 2 . . . . Best Kill Streak 11 | . 2 2 5 5 4 5 7 5 3 2 11 Combat Bots Only 10 | . 2 2 5 4 4 3 6 5 3 2 10 Max Kills in Single Turn 3 | . 1 1 2 1 2 1 3 1 1 1 2 Gunslinging 1 | . . . . . . . 1 . . . . Exploded . | . . . . . . . . . . . . Melee 1 | . . . . . . . . . . . 1 Uniques/NPCs Destroyed . | . . . . . . . . . . . . Combat | -11 -10 -10 -8 -7 -6 -5 -5 -4 -4 -4 -3 -------- Run | Yrd Mat Sub Mat Fac Fac Fac Ext Fac Upp Upp Res Hostile Shots Fired 1943 | . 46 33 213 188 184 49 450 22 158 79 521 Missed 574 | . 15 5 64 69 63 12 113 7 42 30 154 Damage Taken 23486 | . 411 574 2135 1982 2008 532 6397 156 2387 782 6122 Core 3160 | . 102 124 413 199 197 21 490 6 196 95 1317 Absorbed by Shields 1209 | . . . . . . . 870 103 . . 236 Redirected to Shielding 34 | . . . . . . . 4 1 29 . . Ignored by Resistances 172 | . . . . . . . . . . . 172 Regen/Repaired (Parts) 70 | . . . . 70 . . . . . . . Core Remaining (%) 57 | 100 . 9 24 71 76 . 48 . . 74 . Volleys Fired 778 | . 70 26 83 97 92 23 238 5 43 11 90 Largest 4 | . 2 2 2 3 3 4 4 4 4 4 4 Hottest 353 | . 120 120 105 161 155 162 288 172 230 277 353 Shots Fired 2415 | . 139 52 160 275 264 90 906 20 156 37 316 Gun 2076 | . 112 18 144 215 264 89 820 20 156 19 219 Cannon 339 | . 27 34 16 60 . 1 86 . . 18 97 Launcher . | . . . . . . . . . . . . Special . | . . . . . . . . . . . . Kinetic 731 | . 24 16 107 77 5 46 311 15 124 4 2 Thermal 1566 | . 72 36 53 198 227 44 595 5 32 33 271 Explosive . | . . . . . . . . . . . . Electromagnetic 118 | . 43 . . . 32 . . . . . 43 Robot Hit Streak 37 | . 9 27 11 23 37 19 28 7 32 12 21 Robot Miss Streak 7 | . 6 1 3 4 2 2 7 3 4 2 3 Penetration Max 1 | . . . . . . 1 1 . 1 . . Secondary Targets 18 | . . . 1 . 1 . 8 . 2 . 6 Max Gunslinging Chain 2 | . . . 1 . 1 . 2 . 1 . 1 Shots Hit Robots 1644 | . 82 30 107 188 204 58 584 9 109 25 248 Core Hits 646 | . 30 7 48 88 81 27 223 5 39 5 93 Critical Kills 8 | . . . . . . 1 3 1 1 . 2 Critical Parts Destroyed 6 | . . . 1 . . . 4 . 1 . . Critical Strikes 71 | . 2 . 2 11 8 3 28 1 2 . 14 Burn 51 | . 2 . 1 7 8 2 21 . . . 10 Meltdown 2 | . . . . . . . . . . . 2 Destroy 12 | . . . 1 . . 1 7 1 2 . . Blast 5 | . . . . 4 . . . . . . 1 Sever 1 | . . . . . . . . . . . 1 Melee Attacks 4 | . . . . . . . . . . . 4 Impact . | . . . . . . . . . . . . Slashing 4 | . . . . . . . . . . . 4 Piercing . | . . . . . . . . . . . . Sneak Attacks . | . . . . . . . . . . . . Combat Hostiles . | . . . . . . . . . . . . Follow-up Attacks . | . . . . . . . . . . . . Damage Inflicted 35668 | . 1127 579 1928 3938 4042 1262 13465 200 2173 639 6315 Guns 29136 | . 904 116 1687 2791 4042 1262 11785 200 2173 281 3895 Cannons 6376 | . 223 463 241 1147 . . 1680 . . 358 2264 Explosions . | . . . . . . . . . . . . Melee 156 | . . . . . . . . . . . 156 Ramming . | . . . . . . . . . . . . Kinetic 9851 | . 146 116 1267 1325 38 484 4568 156 1642 20 89 Thermal 23905 | . 590 463 661 2613 3524 778 8897 44 531 619 5185 Explosive . | . . . . . . . . . . . . Electromagnetic 1756 | . 391 . . . 480 . . . . . 885 Impact . | . . . . . . . . . . . . Slashing 156 | . . . . . . . . . . . 156 Piercing . | . . . . . . . . . . . . Highest Corruption 18 | . . . . 2 15 . 7 . . . 18 Average Corruption 4 | . . . . 1 5 . 5 . . . 5 Corruption Purged . | . . . . . . . . . . . . Corruption Blocked . | . . . . . . . . . . . . Effects 73 | . . . . 14 25 . 12 . . . 22 Message Errors 14 | . . . . 3 6 . 3 . . . 2 Matter Fused 19 | . . . . 2 6 . 5 . . . 6 Heat Flow Errors 8 | . . . . 3 3 . 1 . . . 1 Energy Discharges 9 | . . . . 2 4 . 1 . . . 2 Parts Rejected 1 | . . . . . 1 . . . . . . Data Loss (minor) 7 | . . . . 2 2 . . . . . 3 Data Loss (major) 4 | . . . . . 1 . . . . . 3 Misfires 2 | . . . . 1 . . . . . . 1 Alerts 1 | . . . . 1 . . . . . . . Weapon Failures 8 | . . . . . 2 . 2 . . . 4 Overload Shots . | . . . . . . . . . . . . Overflow Damage 131 | . . . 6 23 . . 77 . . 9 16 Projectiles 131 | . . . 6 23 . . 77 . . 9 16 Explosions . | . . . . . . . . . . . . Melee . | . . . . . . . . . . . . Knockbacks 8 | . . . . 6 . . . . . . 2 Impact . | . . . . . . . . . . . . Kinetic 8 | . . . . 6 . . . . . . 2 Secondary . | . . . . . . . . . . . . Self-Inflicted Damage . | . . . . . . . . . . . . Shots . | . . . . . . . . . . . . Rammed . | . . . . . . . . . . . . Targets Rammed . | . . . . . . . . . . . . Kicked . | . . . . . . . . . . . . Crushed . | . . . . . . . . . . . . Highest Temperature 616 | . 110 18 139 300 384 147 424 30 196 172 616 Average Temperature 86 | . 31 6 38 96 85 25 92 16 68 61 127 Received Heat Transfer 4353 | . 249 123 540 363 444 9 1156 14 540 . 915 Effects 18 | . . . . . 1 . 6 . . . 11 Shutdowns 4 | . . . . . 1 . 2 . . . 1 Energy Bleed 3 | . . . . . . . 2 . . . 1 Interference 4 | . . . . . . . 2 . . . 2 Matter Decay 1 | . . . . . . . . . . . 1 Damage (minor) 2 | . . . . . . . . . . . 2 Damage (major) 4 | . . . . . . . . . . . 4 Siege Activations . | . . . . . . . . . . . . Robots Corrupted . | . . . . . . . . . . . . Combat Hostiles . | . . . . . . . . . . . . Parts Fried 4 | . . . . . . . . . . . 4 Impact Corruptions . | . . . . . . . . . . . . Robots Melted 27 | . . . . 2 4 . 8 . 2 2 9 Combat Hostiles 22 | . . . . 2 2 . 5 . 2 2 9 Parts Melted 161 | . 1 3 4 19 23 12 43 . 3 8 45 Heat Transferred 47252 | . 1702 851 1224 5370 7473 1765 16806 74 999 994 9994 Parts Sabotaged . | . . . . . . . . . . . . Parts Stolen . | . . . . . . . . . . . . Parts Stripped . | . . . . . . . . . . . . Power Chain Reactions . | . . . . . . . . . . . . Alert | -11 -10 -10 -8 -7 -6 -5 -5 -4 -4 -4 -3 ------- Run | Yrd Mat Sub Mat Fac Fac Fac Ext Fac Upp Upp Res Peak Influence 1150 | . 207 . 273 597 555 343 1150 682 . . 376 Initial 556 | . . . 14 105 291 271 136 556 . . 111 Average 323 | . 89 . 108 212 369 266 545 642 . . 201 Maximum Alert Level 4 | . 1 . 1 2 2 1 4 2 . . 1 Low Security (%) 34 | 100 96 . 89 54 . 14 2 . . . 47 Level 1 31 | . 3 . 11 26 60 85 22 . . . 52 Level 2 28 | . . . . 18 39 . 56 100 . . . Level 3 4 | . . . . . . . 15 . . . . Level 4 1 | . . . . . . . 3 . . . . Level 5 . | . . . . . . . . . . . . High Security . | . . . . . . . . . . . . Max Security . | . . . . . . . . . . . . Squads Dispatched 37 | . 2 . 5 10 9 1 5 . . . 5 Investigation 11 | . 1 . 1 3 2 . 2 . . . 2 Extermination 12 | . . . . 6 3 . . . . . 3 Reinforcement 9 | . 1 . 4 1 1 1 1 . . . . Assault 2 | . . . . . . . 2 . . . . Garrison 3 | . . . . . 3 . . . . . . Intercept . | . . . . . . . . . . . . Searches Triggered . | . . . . . . . . . . . . Construction Impeded 1 | . . . 1 . . . . . . . . Haulers Reinforced . | . . . . . . . . . . . . Active Scanning Responses . | . . . . . . . . . . . . Cargo Convoy Interrupts . | . . . . . . . . . . . . Stealth | -11 -10 -10 -8 -7 -6 -5 -5 -4 -4 -4 -3 --------- Run | Yrd Mat Sub Mat Fac Fac Fac Ext Fac Upp Upp Res Distress Signals 6 | . . . 1 . . . 3 . . . 2 Communications Jammed . | . . . . . . . . . . . . Distress Signals . | . . . . . . . . . . . . Times Spotted 309 | . 21 4 30 38 35 8 91 9 20 2 51 Peak Tracking Total 10 | . 4 2 8 4 5 3 8 5 5 2 10 Tactical Retreats 21 | . 1 . 1 2 6 . 6 . 2 . 3 Traps | -11 -10 -10 -8 -7 -6 -5 -5 -4 -4 -4 -3 ------- Run | Yrd Mat Sub Mat Fac Fac Fac Ext Fac Upp Upp Res Traps Triggered 16 | . 1 . 1 3 2 . 8 . . . 1 Indirectly . | . . . . . . . . . . . . Trap Hack Attempts . | . . . . . . . . . . . . Triggered . | . . . . . . . . . . . . Disarmed . | . . . . . . . . . . . . Reprogrammed . | . . . . . . . . . . . . Reused . | . . . . . . . . . . . . Traps Extracted . | . . . . . . . . . . . . Installed . | . . . . . . . . . . . . Triggered . | . . . . . . . . . . . . Machines | -11 -10 -10 -8 -7 -6 -5 -5 -4 -4 -4 -3 ---------- Run | Yrd Mat Sub Mat Fac Fac Fac Ext Fac Upp Upp Res Machines Disabled 6 | . . . . 1 . . 3 . . . 2 Max in Single Turn 1 | . . . . 1 . . 1 . . . 1 Garrison Access 1 | . . . . . . 1 . . . . . Machines Repaired . | . . . . . . . . . . . . Machines Dismantled . | . . . . . . . . . . . . Machines Sabotaged . | . . . . . . . . . . . . Overloaded Fab Kills . | . . . . . . . . . . . . Hacking | -11 -10 -10 -8 -7 -6 -5 -5 -4 -4 -4 -3 --------- Run | Yrd Mat Sub Mat Fac Fac Fac Ext Fac Upp Upp Res Machines Accessed 39 | . 5 . 2 12 5 3 8 2 . . 2 Terminals 22 | . 4 . 1 5 1 1 8 2 . . . Fabricators 3 | . . . . 1 1 1 . . . . . Repair Stations 4 | . 1 . . 2 1 . . . . . . Recycling Units 4 | . . . . 2 1 . . . . . 1 Scanalyzers 3 | . . . 1 1 . . . . . . 1 Garrison Access 3 | . . . . 1 1 1 . . . . . Total Hacks 87 | . 12 . 9 24 10 4 17 3 . . 8 Successful 44 | . 7 . 7 10 4 2 6 2 . . 6 Failed 43 | . 5 . 2 14 6 2 11 1 . . 2 Catastrophic 12 | . 1 . 1 3 1 . 4 1 . . 1 Database Lockouts . | . . . . . . . . . . . . Manual . | . . . . . . . . . . . . Terminals 44 | . 8 . 6 7 2 1 17 3 . . . Fabricators 5 | . . . . 2 2 1 . . . . . Repair Stations 11 | . 4 . . 5 2 . . . . . . Recycling Units 6 | . . . . 2 2 . . . . . 2 Scanalyzers 13 | . . . 3 4 . . . . . . 6 Garrison Access 8 | . . . . 4 2 2 . . . . . Terminal Hacks 24 | . 6 . 5 3 1 1 6 2 . . . Record 6 | . 3 . 3 . . . . . . . . Robot Analysis 1 | . . . 1 . . . . . . . . Open Door 5 | . . . . . . 1 4 . . . . Open DSF 1 | . . . . . . . . 1 . . . Branch Access Points 1 | . . . . 1 . . . . . . . Emergency Access Points 1 | . . . . 1 . . . . . . . Locate Traps 5 | . 2 . . . 1 . 1 1 . . . Dispatch Records 2 | . . . 1 . . . 1 . . . . Hauler Manifests 1 | . 1 . . . . . . . . . . Zone Layout 1 | . . . . 1 . . . . . . . Fabricator Hacks 4 | . . . . 2 2 . . . . . . Load Schematic 2 | . . . . 1 1 . . . . . . Build 2 | . . . . 1 1 . . . . . . Repair Station Hacks 3 | . 1 . . 2 . . . . . . . Scan Component 2 | . 1 . . 1 . . . . . . . Repair 1 | . . . . 1 . . . . . . . Recycling Unit Hacks 2 | . . . . 1 1 . . . . . . Report Inventory 2 | . . . . 1 1 . . . . . . Scanalyzer 10 | . . . 2 2 . . . . . . 6 Insert Component 5 | . . . 1 1 . . . . . . 3 Analyze 5 | . . . 1 1 . . . . . . 3 Garrison Access Hacks 1 | . . . . . . 1 . . . . . Seal Access 1 | . . . . . . 1 . . . . . Unauthorized Hacks . | . . . . . . . . . . . . Terminals . | . . . . . . . . . . . . Fabricators . | . . . . . . . . . . . . Repair Stations . | . . . . . . . . . . . . Recycling Units . | . . . . . . . . . . . . Scanalyzers . | . . . . . . . . . . . . Garrison Access . | . . . . . . . . . . . . Data Cores Recovered 2 | . . . 1 1 . . . . . . . Used 1 | . . . 1 . . . . . . . . Hacking Detections 32 | . 5 . 2 10 4 2 6 1 . . 2 Full Trace Events 11 | . 2 . . 3 2 . 2 . . . 2 Feedback Events . | . . . . . . . . . . . . Feedback Blocked . | . . . . . . . . . . . . Robot Schematics Acquired . | . . . . . . . . . . . . Robots Built . | . . . . . . . . . . . . Authchips . | . . . . . . . . . . . . Time . | . . . . . . . . . . . . Total Robot Build Rating . | . . . . . . . . . . . . Part Schematics Acquired 4 | . . . . 1 . . . . . . 3 Parts Built 2 | . . . . 1 1 . . . . . . Authchips . | . . . . . . . . . . . . Time 109 | . . . . 36 73 . . . . . . Total Part Build Rating 6 | . . . . 3 3 . . . . . . Parts Repaired 1 | . . . . 1 . . . . . . . Time 22 | . . . . 22 . . . . . . . Parts Recycled . | . . . . . . . . . . . . Recycled Matter . | . . . . . . . . . . . . Retrieved Matter . | . . . . . . . . . . . . Retrieved Components . | . . . . . . . . . . . . Parts Scanalyzed 5 | . . . 1 1 . . . . . . 3 Part Schematics Acquired 4 | . . . . 1 . . . . . . 3 Parts Damaged . | . . . . . . . . . . . . Bothacking | -11 -10 -10 -8 -7 -6 -5 -5 -4 -4 -4 -3 ------------ Run | Yrd Mat Sub Mat Fac Fac Fac Ext Fac Upp Upp Res Used RIF Installer . | . . . . . . . . . . . . Robots Hacked . | . . . . . . . . . . . . Non-combat . | . . . . . . . . . . . . Combat . | . . . . . . . . . . . . Robot Hacks Applied . | . . . . . . . . . . . . Relay Couplers Released . | . . . . . . . . . . . . Fabnet Peak Effective % . | . . . . . . . . . . . . Robots Rewired . | . . . . . . . . . . . . Allies Hacked . | . . . . . . . . . . . . Hacks Repelled . | . . . . . . . . . . . . Allies | -11 -10 -10 -8 -7 -6 -5 -5 -4 -4 -4 -3 -------- Run | Yrd Mat Sub Mat Fac Fac Fac Ext Fac Upp Upp Res Total Allies 3 | . . . . . . . 3 . . . . Largest Group 1 | . . . . . . . 1 . . . . Highest-Rated Group 31 | . . . . . . . 31 . . . . Highest-Rated Ally 31 | . . . . . . . 31 . . . . Total Orders . | . . . . . . . . . . . . Ally Attacks 18 | . . . . . . . 18 . . . . Total Damage 385 | . . . . . . . 385 . . . . Kills 2 | . . . . . . . 2 . . . . Allies Corrupted . | . . . . . . . . . . . . Allies Melted 1 | . . . . . . . 1 . . . . Intel | -11 -10 -10 -8 -7 -6 -5 -5 -4 -4 -4 -3 ------- Run | Yrd Mat Sub Mat Fac Fac Fac Ext Fac Upp Upp Res Robot Analysis Total 1 | . . . 1 . . . . . . . . Derelict Logs Recovered 1 | . . . . . . . . . 1 . . Drone Launches . | . . . . . . . . . . . . Drone Recoveries . | . . . . . . . . . . . . Exploration | -11 -10 -10 -8 -7 -6 -5 -5 -4 -4 -4 -3 ------------- Run | Yrd Mat Sub Mat Fac Fac Fac Ext Fac Upp Upp Res Turns Passed 14556 | 29 990 305 1100 3088 1523 723 4003 229 1046 98 1422 Spaces Moved 7567 | 27 667 104 630 1793 854 470 1609 154 635 26 598 Core 13 | 3 . 10 . . . . . . . . . Treads 19 | . . . . . . . 9 . . . 10 Legs 408 | . . . . . . . 402 . . . 6 Wheels 7127 | 24 667 94 630 1793 854 470 1198 154 635 26 582 Hover . | . . . . . . . . . . . . Flight . | . . . . . . . . . . . . Fastest Speed 50 | 50 80 110 103 126 115 120 120 131 131 131 131 Average Speed 138 | 76 104 192 120 140 121 127 162 131 131 145 163 Slowest Speed 850 | 80 155 850 170 255 170 131 320 135 160 165 470 Overloaded Moves . | . . . . . . . . . . . . Propulsion Burnouts . | . . . . . . . . . . . . Robots Hopped . | . . . . . . . . . . . . Cave-ins Triggered 1 | . . . . . . . 1 . . . . Exploration Rate (%) 34 | 3 96 12 40 40 24 8 96 3 72 4 15 Regions Visited 11 Branch Regions 4 Pre-discovered Areas . | . . . . . . . . . . . . Known Exits Taken . | . . . . . . . . . . . . Unknown Exits Taken 11 | 1 1 1 1 1 1 1 1 1 1 1 . Scrap Searched 4 | . . 1 . . . . . . 2 1 . Spaces Dug 1 | . . . . . . . 1 . . . . Terrain Destroyed 81 | . . 1 6 5 . 2 34 2 15 8 8 Melee . | . . . . . . . . . . . . Projectile 81 | . . 1 6 5 . 2 34 2 15 8 8 AOE . | . . . . . . . . . . . . Terrain Rammed . | . . . . . . . . . . . . Walls Destroyed . | . . . . . . . . . . . . Machines Disabled . | . . . . . . . . . . . . Actions | -11 -10 -10 -8 -7 -6 -5 -5 -4 -4 -4 -3 --------- Run | Yrd Mat Sub Mat Fac Fac Fac Ext Fac Upp Upp Res Total 10019 | 32 815 156 843 2163 1143 551 2511 172 750 62 821 Wait 871 | . 51 12 40 166 107 26 375 1 48 20 25 Move 7556 | 26 666 103 629 1792 853 469 1608 153 634 25 598 Hop . | . . . . . . . . . . . . Pick Up 193 | . 12 7 26 25 18 5 59 4 6 3 28 Fast Attach 68 | 6 2 1 11 8 6 4 11 1 . . 18 Attach 118 | . 4 4 12 12 13 3 28 2 15 3 22 Detach 9 | . 1 . 2 1 1 . 2 . . . 2 Swap 138 | . 6 3 15 25 15 9 48 . 2 . 15 Drop 197 | . 3 . 25 29 22 12 79 6 2 . 19 Fire 778 | . 70 26 83 97 92 23 238 5 43 11 90 Melee 4 | . . . . . . . . . . . 4 Ram . | . . . . . . . . . . . . Kick . | . . . . . . . . . . . . Crush . | . . . . . . . . . . . . Escape Stasis 87 | . . . . 8 16 . 63 . . . . Rewire . | . . . . . . . . . . . . Trap . | . . . . . . . . . . . . Miscellaneous . | . . . . . . . . . . . . Route ------- -11/Scrapyard -10/Materials (discovered 6 exits: [*Mat x3] / [*Min x2] / [*Sub]) -10/Subcaves (discovered 2 exits: *Mat x2) -8/Materials -7/Factory (discovered 4 exits: *Fac x2 / *Low x2) -6/Factory (discovered 2 exits: *Fac / [*Low]) -5/Factory -5/Extension (discovered 3 exits: *Fac x2 / [*Cet]) -4/Factory -4/Upper Caves -4/Upper Caves -3/Research History --------- Turn | Location | Event 9 | -11/Scrapyard | Discovered new exit (range 16) 30 | -11/Scrapyard | Entered Materials 106 | -10/Materials | Discovered new exit (range 9) 150 | -10/Materials | Discovered new exit (range 5) 199 | -10/Materials | Discovered new exit (range 12) 316 | -10/Materials | Build established: Mutant 569 | -10/Materials | Discovered new exit (range 9) 904 | -10/Materials | Discovered new exit (range 10) 1013 | -10/Materials | Discovered new exit (range 7) 1020 | -10/Materials | Entered Subcaves 1054 | -10/Subcaves | Ambushed by Subdwellers from Twisted Machinery 1069 | -10/Subcaves | Core integrity fell below 50% 1132 | -10/Subcaves | Lost 5 parts (1p2n2u) 1301 | -10/Subcaves | Core integrity fell below 20% 1310 | -10/Subcaves | Discovered new exit (range 9) 1313 | -10/Subcaves | Discovered new exit (range 9) 1325 | -10/Subcaves | Entered Materials 1325 | -8/Materials | Evolved 4 slots: Power x1, Propulsion x1, Utility x2 1906 | -8/Materials | Build established: Scavenger-Mutant 2279 | -8/Materials | Discovered new exit (range 4) 2293 | -8/Materials | Core integrity fell below 50% 2334 | -8/Materials | Lost 8 parts (3n3u2w) 2425 | -8/Materials | Entered Factory 2425 | -7/Factory | Evolved 2 slots: Utility x1, Weapon x1 2455 | -7/Factory | Lost 4 parts (2p1n1w) 2656 | -7/Factory | Discovered new exit (range 8) 2708 | -7/Factory | Build established: Scavenger-Gunner 2874 | -7/Factory | Lost 5 parts (1p1n1u2w) 3140 | -7/Factory | Build established: Gunner 3517 | -7/Factory | Build established: Scavenger-Gunner 4070 | -7/Factory | Discovered new exit (range 9) 4132 | -7/Factory | Repaired Imp. Deuterium Engine 4842 | -7/Factory | Discovered new exit (range 13) 5240 | -7/Factory | Fabricated Hrd. Medium Armor Plating? 5395 | -7/Factory | Identified exit to Lower Caves 5513 | -7/Factory | Entered another Factory area 5513 | -6/Factory | Evolved 2 slots: Propulsion x1, Utility x1 5893 | -6/Factory | Discovered new exit (range 6) 5919 | -6/Factory | Fabricated Hrd. Medium Armor Plating? 6633 | -6/Factory | Garrison activated, responded to threat 6851 | -6/Factory | System corruption reached 10% 6884 | -6/Factory | Lost 5 parts (2n1u2w) 7029 | -6/Factory | Discovered new exit (range 6) 7036 | -6/Factory | Entered another Factory area 7036 | -5/Factory | Evolved 2 slots: Utility x1, Weapon x1 7206 | -5/Factory | Build established: Scavenger-Tank 7402 | -5/Factory | Discovered new exit (range 10) 7611 | -5/Factory | Lost 3 parts (1n1u1w) 7759 | -5/Factory | Entered Extension 8030 | -5/Extension | Rescued a captive Derelict 8184 | -5/Extension | Disrupted transfer network 8317 | -5/Extension | Lost 4 parts (3n1u) 8392 | -5/Extension | Lost 3 parts (1p2u) 8818 | -5/Extension | Spotted B-75 Beast 8883 | -5/Extension | Destroyed B-75 Beast 8896 | -5/Extension | Spotted B-75 Beast 8933 | -5/Extension | Lost 9 parts (2p2n3u2w) 9259 | -5/Extension | First assault squad dispatched 10583 | -5/Extension | Destroyed B-75 Beast 10765 | -5/Extension | Discovered new exit (range 3) 11104 | -5/Extension | Rescued a captive Derelict 11312 | -5/Extension | Rescued a captive Derelict 11425 | -5/Extension | Crushed by falling debris 11486 | -5/Extension | Discovered new exit (range 10) 11488 | -5/Extension | Discovered new exit (range 6) 11510 | -5/Extension | Disrupted transfer network 11519 | -5/Extension | Core integrity fell below 50% 11762 | -5/Extension | Entered Factory 11762 | -4/Factory | Evolved 2 slots: Power x1, Utility x1 11985 | -4/Factory | Discovered new exit (range 5) 11991 | -4/Factory | Entered Upper Caves 12384 | -4/Upper Caves | Attracted the attention of an 0b10 checkpoint 12897 | -4/Upper Caves | Attracted the attention of an 0b10 outpost 12999 | -4/Upper Caves | Lost 12 parts (1p2n4u5w) 13020 | -4/Upper Caves | Discovered new exit (range 13) 13037 | -4/Upper Caves | Entered another Upper Caves area 13066 | -4/Upper Caves | Discovered new exit (range 9) 13135 | -4/Upper Caves | Entered Research 13135 | -3/Research | Evolved 2 slots: Propulsion x1, Utility x1 13142 | -3/Research | Lost 8 parts (3n3u2w) 13297 | -3/Research | Build established: Scavenger-Gunner 13927 | -3/Research | Lost 6 parts (1p2n3w) 13936 | -3/Research | Destroyed 10 combat bots 14366 | -3/Research | System corruption reached 10% 14510 | -3/Research | Lost 10 parts (1p5n2u2w) 14542 | -3/Research | Core integrity fell below 50% 14550 | -3/Research | Core integrity fell below 20% 14557 | -3/Research | Destroyed by P-80 Master with Gamma Rifle Last Messages --------------- 14544_ P-80 Master destroyed. 14545_ R-10 Processor collects Plasma Rifle. 14547_ Penetrated by Slug. 14547_ Slug penetrates Wall. 14547_ Penetrated by Slug. 14548_ R-10 Processor collects Sml. Battery. 14549_ Penetrated by Slug. 14549_ Slug penetrates R-10 Processor. 14549_ U-05 Engineer destroyed. 14551_ Penetrated by Slug. 14551_ Chainsword destroyed. 14551_ Slug penetrates Wall. 14551_ R-10 Processor collects Welding Torch. 14551_ K-01 Serf collects debris. 14553_ P-80 Master knocked back. 14554_ Slug penetrates Wall. 14554_ K-01 Serf collects debris. 14554_ Penetrated by Slug. 14555_ P-80 Master Imp. Antigrav System blasted off. 14555_ P-80 Master knocked back. Map ----- +----------------------------------------------------+ | ?????????????????????????????????????????? | | ?????????????????????????????????????????? | | ?????????????????????????????????????????? | | ?????????????????????????????????????????? | | ?????????????????????????????????????????? | | ?????????????????????????????????????????? | | ?????????????????????????????????????????? | | ?????????????????????????????????????????? | | ?????????????????????????????????????????? | | ?????????????????????????????????????????? | | ?????????????????????????????????????????? | | ?????????????? ??????????????????????????? | | ?????????????# ??????????????????????????? | | ?????????????# ??????????????????????????? | | ?????????????# ??????? +?????????????? | | ?????????????? ??????? #?????????????? | | ?????????????? ??????? #?????????????? | | ????????????########### #?????????????? | | ????????????# # #?????????????? | | ????????????#[ !! # #?????????????? | | ????????????# !! # #?????????????? | | ????????????# %k ####??????????? | | ????????????# !== # ???????????? | | ????????????# !=p%% # | ????????????? | | ????????????# |*=hg!# %*#?#?######????? | | ????????????# @*%p*# ! #? #???? | | ????????????#######%!;;R % # * #???? | | ????????????## !!!%%! ;h # #???? | | ?????+ " |[[%[%/% + ??????? | | ?????# #### ==![!# # ?????????? | | ?????????????# ![!=# #?????????????? | | ?????????????# # #?????????????? | | ?????????????# # ^#?????????????? | | ?????????????# " "" # #?????????????? | | ?????????????# "R"" # #?????????????? | | ?????????????# """" # #?????????????? | | ?????????????########## #?????????????? | | ??????????????????????# #?????????????? | | ??????????????????????# #?????????????? | | ??????????????????????# #?????????????? | | ??????????????????????# #?????????????? | | ??????????????????????# #?????????????? | | ??????????????????????# #?????????????? | | ??????????????????????# ############### | | ??????????????????????# ## | | ????????????#########?# ## | | ????????????# ?# ## | | ????????????# # ## | | ????????????# # ## ######### | | ????????????+ ! + # # | +----------------------------------------------------+ Best States ------------- Heat Dissipation 119 Coolant Potential 100 Energy Generation 57 Energy Capacity 700 Matter Stores 450 Matter Capacity 450 Sight Range 16 Robot Scan Range 18 Terrain Scan Density 10 Jamming Range 14 Additional Mass Support 9 Armor Coverage 600 Resistance: TH 25 Resistance: EX 50 Core Shielding 20 Evasion (%) 44 Targeting Accuracy 8 Recoil Reduction 3 Item Schematics ----------------- Hrd. Medium Armor Plating | -7/Factory | Scanalyzed Com. Wheel | -3/Research | Scanalyzed Huge Storage Unit | -3/Research | Scanalyzed Lyr. Heavy Armor Plating | -3/Research | Scanalyzed Robot Schematics ------------------ None Fabricated ------------ Hrd. Medium Armor Plating | x1 | -7/Factory Hrd. Medium Armor Plating | x1 | -6/Factory Alien Tech Used ----------------- None Achievements -------------- No Signal Pyromaniac Challenges ------------ None Game ------ Seed ArmoredAssaultStorage Manual? 0 Play Time 02:51:50 Cumulative 223.5 hours Start 2024.04.06 @ 10:37:24 End 2024.04.06 @ 14:17:28 Sessions 1 Manual Loads 0 Difficulty Rogue Special Mode None Game No. 173 Rogue 161 Adventurer 12 Explorer 0 Win Type - Total 1 Types 1/0/0/0/0/0/0/0/0 Lore% 28 Gallery% 46 Achievement% 33 Wizard Run 0 Options --------- Layout 1 ASCII 0 Keyboard 0 Movement Mouse Keybinds 0 Fullscreen 1 Font 32/SmallcapsGlow Map View 77x35 Zoom Use 0% Tactical HUD 1 Map Filters NONE Filters NONE Steam 1 RUN: 367753ee-4d50-462a-a81e-170bf066bef4